Workbook

Sheet Index
B1: ='Input | General'!$B$1 -> AusGrid 2019-24 Draft decision - Capital expenditure sharing scheme model
B2: Index
C4: Model index
C6: Sheet Name | D6: Sheet Description
C7: Input | General | D7: Inputs NSP name, regulatory years for the prior and forecast regulatory control period etc.
C8: Input | Inflation and Disc Rate | D8: Inputs the inflation and discount rate
C9: Input | Reported Capex | D9: Inputs the reported capital expenditure from the prior regulatory control period as well as the AER's forecast etc.
C10: Calc | CESS Revenue Increments | D10: Calculates the CESS payments from the prior regulatory control period
C11: Output | Models | D11: Outputs the CESS revenue increments needed as a post tax revenue model input
C12: Lookup | Tables | D12: Includes the lookup tables used within the CESS model.
C14: End

Sheet Input | General
B1: =$D$6&" "&$D$8&" "&D7&" - "&"Capital expenditure sharing scheme model" -> AusGrid 2019-24 Draft decision - Capital expenditure sharing scheme model | G1: Key: | H1: Input | I1: Internal Link
B2: Input | General
B4: Input | General
C6: NSP Name | D6: AusGrid
C7: Determination stage | D7: Draft decision
C8: Determination years | D8: 2019-24
C10: Regulatory control period details
D11: Year 1 | E11: Year 2 | F11: Year 3 | G11: Year 4 | H11: Year 5
C12: Regulatory control period CESS applied in (regulatory years) | D12: 2014-15 | E12: 2015-16 | F12: 2016-17 | G12: 2017-18 | H12: 2018-19
C13: CESS to apply to this year's expenditure (Yes/No) | D13: No | E13: Yes | F13: Yes | G13: Yes | H13: Yes
C14: Actual or estimate year | D14: Actual | E14: Actual | F14: Actual | G14: Estimate | H14: Estimate
D16: Year 1 | E16: Year 2 | F16: Year 3 | G16: Year 4 | H16: Year 5
C17: Regulatory control period CESS revenue increment applied in (regulatory years) | D17: 2019-20 | E17: 2020-21 | F17: 2021-22 | G17: 2022-23 | H17: 2023-24
C18: Regulatory control period prior to CESS applied in (regulatory years) | D18: 2009-10 | E18: 2010-11 | F18: 2011-12 | G18: 2012-13 | H18: 2013-14
B20: End

Sheet Input | Inflation and Disc Rate
B1: ='Input | General'!$B$1 -> AusGrid 2019-24 Draft decision - Capital expenditure sharing scheme model | H1: Key: | I1: Input | J1: Internal Link
C2: Input | Inflation and Discount rate
C4: Input | Inflation
D6: Source | E6: Unit
F7: ='Lookup | Tables'!$E$27 -> 2013-14 | G7: ='Lookup | Tables'!$E$28 -> 2014-15 | H7: ='Lookup | Tables'!$E$29 -> 2015-16 | I7: ='Lookup | Tables'!$E$30 -> 2016-17 | J7: ='Lookup | Tables'!$E$31 -> 2017-18 | K7: ='Lookup | Tables'!$E$32 -> 2018-19 | L7: ='Lookup | Tables'!$E$33 -> 2019-20 | M7: ='Lookup | Tables'!$E$34 -> 2020-21 | N7: ='Lookup | Tables'!$E$35 -> 2021-22 | O7: ='Lookup | Tables'!$E$36 -> 2022-23 | P7: ='Lookup | Tables'!$E$37 -> 2023-24
C8: Actual CPI Inflation Rate | D8: TNSP | E8: Per cent | G8: 0.02449888641 | H8: 0.02487922705 | I8: 0.01508366722 | J8: 0.01276990945
C9: Forecast CPI Inflation Rate | D9: TNSP | E9: Per cent | K9: 0.0195 | L9: 0.025 | M9: 0.025 | N9: 0.025 | O9: 0.025 | P9: 0.025
C10: ="CPI Index (base year "&F7&")" -> CPI Index (base year 2013-14) | D10: TNSP | E10: Index | F10: 1
C11: CPI Index | D11: TNSP | E11: Index | G11: =IF(G7<>"",(F10*(1+G8)),"") -> 1.024498886 | H11: =IF(H7<>"",(G11*(1+H8)),"") -> 1.049987627 | I11: 1.065825291 | J11: 1.079435783 | K11: =IF(K7<>"",(J11*(1+K9)),"") -> 1.100484781 | L11: 1.127996901 | M11: 1.156196823 | N11: 1.185101744 | O11: 1.214729287 | P11: 1.245097519
C14: Actual CPI Inflation Rate | D14: AER | E14: Per cent | G14: 0.0238 | H14: 0.0238 | I14: 0.0238 | J14: 0.0238
C15: Forecast CPI Inflation Rate | D15: AER | E15: Per cent | K15: 0.0238 | L15: 0.025 | M15: 0.025 | N15: 0.025 | O15: 0.025 | P15: 0.025
C16: ="CPI Index (base year "&F7&")" -> CPI Index (base year 2013-14) | D16: AER | E16: Index | F16: 1
C17: CPI Index | D17: AER | E17: Index | G17: =IF(G7<>"",(F16*(1+G14)),"") -> 1.0238 | H17: =IF(H7<>"",(G17*(1+H14)),"") -> 1.04816644 | I17: 1.073112801 | J17: 1.098652886 | K17: =IF(K7<>"",(J17*(1+K15)),"") -> 1.124800825 | L17: 1.152920845 | M17: 1.181743866 | N17: 1.211287463 | O17: 1.24156965 | P17: 1.272608891
C19: Input | Discount rate
D21: Source | E21: Unit | G21: ='Lookup | Tables'!$E$28 -> 2014-15 | H21: ='Lookup | Tables'!$E$29 -> 2015-16 | I21: ='Lookup | Tables'!$E$30 -> 2016-17 | J21: ='Lookup | Tables'!$E$31 -> 2017-18 | K21: ='Lookup | Tables'!$E$32 -> 2018-19 | L21: ='Lookup | Tables'!$E$33 -> 2019-20 | M21: ='Lookup | Tables'!$E$34 -> 2020-21 | N21: ='Lookup | Tables'!$E$35 -> 2021-22 | O21: ='Lookup | Tables'!$E$36 -> 2022-23 | P21: ='Lookup | Tables'!$E$37 -> 2023-24
C22: Real Vanilla WACC | D22: AER | E22: Per cent | H22: 0.04199815337 | I22: 0.04114802093 | J22: 0.04026287824 | K22: 0.0393960438 | L22: 0.0379 | M22: 0.0374 | N22: 0.037 | O22: 0.0366 | P22: 0.03635691363
C24: Nominal Vanilla WACC (fixed, real, time varying) | D24: Calculated | E24: Per cent | G24: =IF(AND('Input | Inflation and Disc Rate'!H8<>"",G22<>""),((1+G22)*(1+'Input | Inflation and Disc Rate'!H8)-1),"") ->  | H24: =IF(AND(H14<>"",H22<>""),((1+H22)*(1+H14)-1),"") -> 0.06679770942 | I24: =IF(AND(I14<>"",I22<>""),((1+I22)*(1+I14)-1),"") -> 0.06592734383 | J24: 0.06502113474 | K24: =IF(AND(K15<>"",K22<>""),((1+K22)*(1+K15)-1),"") -> 0.06413366965 | L24: 0.0638475 | M24: 0.063335 | N24: 0.062925 | O24: 0.062515 | P24: 0.06226583647
B26: End

Sheet Input | Reported Capex
B1: ='Input | General'!$B$1 -> AusGrid 2019-24 Draft decision - Capital expenditure sharing scheme model | I1: Key: | J1: Input | K1: Internal Link
B2: Input | Capex
B4: Input | Capex Allowance
D6: Source | E6: Unit | F6: Basis | H6: n/a | I6: 2015-16 | J6: 2016-17 | K6: 2017-18 | L6: 2018-19
C8: Total capex allowance | D8: AER | E8: $millions | F8: 2013-14 | I8: ='[2]PTRM input'!H71+'[3]PTRM input'!H$71 -> 804.6200511 | J8: ='[2]PTRM input'!I71+'[3]PTRM input'!I$71 -> 776.1522759 | K8: ='[2]PTRM input'!J71+'[3]PTRM input'!J$71 -> 718.2056669 | L8: ='[2]PTRM input'!K71+'[3]PTRM input'!K$71 -> 638.8739696
C9: Total excludable capex | D9: AER | E9: $millions | F9: 2013-14 | I9: ='[2]PTRM input'!H$139+'[2]PTRM input'!H$105+'[3]PTRM input'!H$105 -> 161.4231679 | J9: ='[2]PTRM input'!I$139+'[2]PTRM input'!I$105+'[3]PTRM input'!I$105 -> 124.1991555 | K9: ='[2]PTRM input'!J$139+'[2]PTRM input'!J$105+'[3]PTRM input'!J$105 -> 124.6733807 | L9: ='[2]PTRM input'!K$139+'[2]PTRM input'!K$105+'[3]PTRM input'!K$105 -> 120.5755243
C11: Total capex allowance applicable to CESS | D11: Calculated | E11: $millions | F11: 2013-14 | H11: =IF(H6="", "", H8-H9) -> 0 | I11: =IF(I6="", "", I8-I9) -> 643.1968832 | J11: =IF(J6="", "", J8-J9) -> 651.9531204 | K11: 593.5322863 | L11: 518.2984453
B13: Input | Actual / Estimate Capex
D15: Source | E15: Unit | F15: Basis | H15: n/a | I15: 2015-16 | J15: 2016-17 | K15: 2017-18 | L15: 2018-19
C17: Total capex | D17: AER | E17: $millions | F17: nominal | I17: ='[4]RFM input'!I$71+'[5]RFM input'!I$71 -> 551.5420574 | J17: ='[4]RFM input'!J$71+'[5]RFM input'!J$71 -> 574.0188736 | K17: ='[4]RFM input'!K$71+'[5]RFM input'!K$71 -> 748.0122347 | L17: ='[4]RFM input'!L$71+'[5]RFM input'!L$71 -> 937.3631802
C18: Total excludable capex | D18: AER | E18: $millions | F18: nominal | I18: ='[4]RFM input'!I$139+'[4]RFM input'!I$105+'[5]RFM input'!I$105 -> 247.8865006 | J18: ='[4]RFM input'!J$139+'[4]RFM input'!J$105+'[5]RFM input'!J$105 -> 140.581994 | K18: ='[4]RFM input'!K$139+'[4]RFM input'!K$105+'[5]RFM input'!K$105 -> 142.6070062 | L18: ='[4]RFM input'!L$139+'[4]RFM input'!L$105+'[5]RFM input'!L$105 -> 145.2287047
C20: Total actual capex applicable to CESS | D20: Calculated | E20: $millions | F20: nominal | H20: =IF(H15="", "", H17-H18) -> 0 | I20: =IF(I15="", "", I17-I18) -> 303.6555568 | J20: =IF(J15="", "", J17-J18) -> 433.4368795 | K20: =IF(K15="", "", K17-K18) -> 605.4052285 | L20: =IF(L15="", "", L17-L18) -> 792.1344755
B22: Input | Capex Deferred to following regulatory period
H24: ='Input | General'!D17 -> 2019-20 | I24: ='Input | General'!E17 -> 2020-21 | J24: ='Input | General'!F17 -> 2021-22 | K24: ='Input | General'!G17 -> 2022-23 | L24: ='Input | General'!H17 -> 2023-24
C26: Capex deferred and re-proposed | D26: TNSP | E26: $millions | F26: nominal | H26: 0 | I26: 0 | J26: 0 | K26: 0 | L26: 0
C27: Capex deferred and re-proposed | D27: Calculated | E27: $millions | F27: 2013-14 | H27: =IF(H26<>"",H26/'Input | Inflation and Disc Rate'!L11,"") -> 0 | I27: =IF(I26<>"",I26/'Input | Inflation and Disc Rate'!M11,"") -> 0 | J27: =IF(J26<>"",J26/'Input | Inflation and Disc Rate'!N11,"") -> 0 | K27: =IF(K26<>"",K26/'Input | Inflation and Disc Rate'!O11,"") -> 0 | L27: =IF(L26<>"",L26/'Input | Inflation and Disc Rate'!P11,"") -> 0
C28: Capex deferred and re-proposed | D28: AER | E28: $millions | F28: nominal | H28: =IF(H26<>"",H27*'Input | Inflation and Disc Rate'!L17,"") -> 0 | I28: =IF(I26<>"",I27*'Input | Inflation and Disc Rate'!M17,"") -> 0 | J28: =IF(J26<>"",J27*'Input | Inflation and Disc Rate'!N17,"") -> 0 | K28: =IF(K26<>"",K27*'Input | Inflation and Disc Rate'!O17,"") -> 0 | L28: =IF(L26<>"",L27*'Input | Inflation and Disc Rate'!P17,"") -> 0
B30: End

Sheet Calc | CESS Revenue Increments
B1: ='Input | General'!$B$1 -> AusGrid 2019-24 Draft decision - Capital expenditure sharing scheme model | K1: Key: | L1: Input | M1: Internal Link
B2: Input | CESS Payments
B4: Calc | NPV of CESS payments
C6: Regulatory period 1
C7: Year | D7: n/a | E7: 2015-16 | F7: 2016-17 | G7: 2017-18 | H7: 2018-19
C8: Finance Rate (Real WACC): | E8: ='Input | Inflation and Disc Rate'!H22 -> 0.04199815337 | F8: ='Input | Inflation and Disc Rate'!I22 -> 0.04114802093 | G8: ='Input | Inflation and Disc Rate'!J22 -> 0.04026287824 | H8: ='Input | Inflation and Disc Rate'!K22 -> 0.0393960438
C9: Discount rate: | E9: ='Input | Inflation and Disc Rate'!H24 -> 0.06679770942 | F9: ='Input | Inflation and Disc Rate'!I24 -> 0.06592734383 | G9: ='Input | Inflation and Disc Rate'!J24 -> 0.06502113474 | H9: ='Input | Inflation and Disc Rate'!K24 -> 0.06413366965
C10: Capex allowance | E10: ='Input | Reported Capex'!I11*'Input | Inflation and Disc Rate'!G11*(1+'Input | Inflation and Disc Rate'!H8)^0.5 -> 667.1012697 | F10: ='Input | Reported Capex'!J11*'Input | Inflation and Disc Rate'!H11*(1+'Input | Inflation and Disc Rate'!I8)^0.5 -> 689.6860943 | G10: ='Input | Reported Capex'!K11*'Input | Inflation and Disc Rate'!I11*(1+'Input | Inflation and Disc Rate'!J8)^0.5 -> 636.6280418 | H10: ='Input | Reported Capex'!L11*'Input | Inflation and Disc Rate'!J11*(1+'Input | Inflation and Disc Rate'!K9)^0.5 -> 564.8983835
C11: Actual capex | E11: ='Input | Reported Capex'!I20 -> 303.6555568 | F11: ='Input | Reported Capex'!J20 -> 433.4368795 | G11: ='Input | Reported Capex'!K20 -> 605.4052285 | H11: ='Input | Reported Capex'!L20 -> 792.1344755
C12: Underspend | E12: =(E10-E11) -> 363.4457128 | F12: =(F10-F11) -> 256.2492148 | G12: =(G10-G11) -> 31.22281329 | H12: =(H10-H11) -> -227.2360919
C13: Underspend + 1/2 Nominal WACC | E13: =E12*(1+E$9)^(0.5) -> 375.3881747 | F13: =F12*(1+F$9)^(0.5) -> 264.5613176 | G13: 32.22189997 | H13: -234.4096055
C14: Year 1 benefit | E14: =$D$12*E$8 -> 0 | F14: =$D$12*(1+'Input | Inflation and Disc Rate'!H14)*F$8 -> 0 | G14: =$D$12*(1+'Input | Inflation and Disc Rate'!H14)*(1+'Input | Inflation and Disc Rate'!I14)*G$8 -> 0 | H14: =$D$12*(1+'Input | Inflation and Disc Rate'!H14)*(1+'Input | Inflation and Disc Rate'!I14)*(1+'Input | Inflation and Disc Rate'!J14)*H$8 -> 0
C15: Year 2 benefit | F15: =$E$13*(F$8) -> 15.44648047 | G15: =$E$13*(1+'Input | Inflation and Disc Rate'!I14)*(G$8) -> 15.47392653 | H15: =$E$13*(1+'Input | Inflation and Disc Rate'!I14)*(1+'Input | Inflation and Disc Rate'!J14)*(H$8) -> 15.50113326
C16: Year 3 benefit | G16: =$F$13*G$8 -> 10.65200012 | H16: =$F$13*(1+'Input | Inflation and Disc Rate'!J14)*H$8 -> 10.67072878
C17: Year 4 benefit | H17: =$G$13*(H$8) -> 1.269415383
C18: Year 5 benefit
C19: Total financing benefit | E19: =SUM(E14:E18) -> 0 | F19: =SUM(F14:F18) -> 15.44648047 | G19: 26.12592665 | H19: =SUM(H14:H18) -> 27.44127742
C20: Discount factor (middle of year)* | E20: =(1+E$9)^(0.5)*(1+F$9)*(1+G$9)*(1+H$9) -> 1.247736993 | F20: =(1+F$9)^(0.5)*(1+G$9)*(1+H$9) -> 1.170087157 | G20: =(1+G$9)^(0.5)*(1+H$9) -> 1.09818447 | H20: =(1+$H$9)^0.5 -> 1.031568548
C21: Discount factor (end of year)** | E21: =F21*(1+F$9) -> 1.208041945 | F21: =G21*(1+G$9) -> 1.133324848 | G21: =H21*(1+H$9) -> 1.06413367 | H21: 1
C22: NPV underspend | E22: =E12*E20 -> 453.4846608 | F22: 299.8339151 | G22: =G12*G20 -> 34.28840866 | H22: =H12*H20 -> -234.4096055
C23: NPV financing benefit | E23: =E19*E21 -> 0 | F23: 17.50588014 | G23: =G19*G21 -> 27.8014782 | H23: =H19*H21 -> 27.44127742
C25: Regulatory period 2
C26: Year | D26: ='Input | General'!$D$17 -> 2019-20 | E26: ='Input | General'!$E$17 -> 2020-21 | F26: ='Input | General'!$F$17 -> 2021-22 | G26: ='Input | General'!$G$17 -> 2022-23 | H26: ='Input | General'!$H$17 -> 2023-24
C27: Discount rate: | D27: ='Input | Inflation and Disc Rate'!L$24 -> 0.0638475 | E27: ='Input | Inflation and Disc Rate'!M$24 -> 0.063335 | F27: ='Input | Inflation and Disc Rate'!N$24 -> 0.062925 | G27: ='Input | Inflation and Disc Rate'!O$24 -> 0.062515 | H27: ='Input | Inflation and Disc Rate'!P$24 -> 0.06226583647
C28: Increase in forecast capex in regulatory period 2 attributable to capex deferred in regulatory period 1 | D28: ='Input | Reported Capex'!H28 -> 0 | E28: ='Input | Reported Capex'!I28 -> 0 | F28: ='Input | Reported Capex'!J28 -> 0 | G28: ='Input | Reported Capex'!K28 -> 0 | H28: ='Input | Reported Capex'!L28 -> 0
C29: Discount factor (middle of year 5) | D29: =1/(1+D27)^(0.5) -> 0.9695279002 | E29: =1/((1+E27)^(0.5)*(1+D27)) -> 0.9115606473 | F29: =1/((1+F27)^(0.5)*(1+E27)*(1+D27)) -> 0.8574310426 | G29: =1/((1+G27)^(0.5)*(1+F27)*(1+E27)*(1+D27)) -> 0.8068268768 | H29: =1/((1+H27)^(0.5)*(1+G27)*(1+F27)*(1+E27)*(1+D27)) -> 0.7594448034
C30: NPV of increase in forecast capex from deferred capex | D30: =D28*D29 -> 0 | E30: =E28*E29 -> 0 | F30: 0 | G30: 0 | H30: 0
C32: CESS calculation (post-adjustment)
C33: Total underspend (NPV) adjusted for deferrals | D33: =SUM(D22:H22)-SUM(D30:H30) -> 553.1973792
C34: Relevant sharing ratio | D34: 0.3
C35: Consumer share | D35: =(1-D34)*D33 -> 387.2381654
C36: NSP share | D36: =D34*D33 -> 165.9592137
C37: Total NSP financing benefit (NPV) | D37: =SUM(D23:H23) -> 72.74863575
C38: NPV of CESS payments (post-adjustment) | D38: =D36-D37 -> 93.21057799
C39: Assumed Distribution RAB split | D39: ='[4]PTRM input summary'!J$37/('[4]PTRM input summary'!J$37+'[5]PTRM input summary'!J$37) -> 0.8781214455
C40: Assumed Transmission RAB split | D40: =1-D39 -> 0.1218785545
B42: Calc | Total CESS Payments
D44: ='Input | General'!D17 -> 2019-20 | E44: ='Input | General'!E17 -> 2020-21 | F44: ='Input | General'!F17 -> 2021-22 | G44: ='Input | General'!G17 -> 2022-23 | H44: ='Input | General'!H17 -> 2023-24
C45: =CONCATENATE("CESS Payment Per Year ($", 'Output | Models'!F4," million)") -> CESS Payment Per Year ($2018-19 million) | D45: =-PMT('Input | Inflation and Disc Rate'!K22,5,'Calc | CESS Revenue Increments'!$D$38) -> 20.90211186 | E45: =-PMT('Input | Inflation and Disc Rate'!L22,5,'Calc | CESS Revenue Increments'!$D$38) -> 20.81425815 | F45: =-PMT('Input | Inflation and Disc Rate'!M22,5,'Calc | CESS Revenue Increments'!$D$38) -> 20.78493119 | G45: =-PMT('Input | Inflation and Disc Rate'!N22,5,'Calc | CESS Revenue Increments'!$D$38) -> 20.76148228 | H45: =-PMT('Input | Inflation and Disc Rate'!O22,5,'Calc | CESS Revenue Increments'!$D$38) -> 20.73804463
C46: Distribution CESS Payment Per Year ($2018-19 million) | D46: =$D39*D$45 -> 18.35459268 | E46: =$D39*E$45 -> 18.27744645 | F46: 18.25169382 | G46: 18.23110283 | H46: 18.21052173
C47: Transmission CESS Payment Per Year ($2018-19 million) | D47: =$D40*D$45 -> 2.547519179 | E47: =$D40*E$45 -> 2.536811695 | F47: 2.533237368 | G47: 2.530379449 | H47: 2.527522902
C50: =CONCATENATE("Total CESS Payment ($", 'Output | Models'!$F$4," million)") -> Total CESS Payment ($2018-19 million) | D50: =SUM(D45:H45) -> 104.0008281
C52: Notes
C53: * Capex is assumed to occur mid-year. Hence, a mid-year discount rate is required for capex allowance, actual capex and underspend.
C54: ** The financing benefit is calculated on an end of year basis. Hence, an end of year discount rate is required.
B56: End

Sheet Output | Models
B1: ='Input | General'!$B$1 -> AusGrid 2019-24 Draft decision - Capital expenditure sharing scheme model | K1: Key: | L1: Input | M1: Internal Link
B2: =[1]Index!$C$13 -> Output | Models
B4: Inputs for Post Tax Revenue Model | E4: $millions | F4: 2018-19 | J4: Note. The dollar base should be consistent with the post tax revenue model
C6: Revenue Adjustments | D6: Source | E6: Unit | F6: Basis | J6: ='Calc | CESS Revenue Increments'!D44 -> 2019-20 | K6: ='Calc | CESS Revenue Increments'!E44 -> 2020-21 | L6: ='Calc | CESS Revenue Increments'!F44 -> 2021-22 | M6: ='Calc | CESS Revenue Increments'!G44 -> 2022-23 | N6: ='Calc | CESS Revenue Increments'!H44 -> 2023-24 | O6: Total
C8: CESS increments as per NER 6A.5.4(a)(5) | D8: Calc | CESS Revenue Increments | E8: =$E$4 -> $millions | F8: =$F$4 -> 2018-19 | J8: ='Calc | CESS Revenue Increments'!D45 -> 20.90211186 | K8: ='Calc | CESS Revenue Increments'!E45 -> 20.81425815 | L8: ='Calc | CESS Revenue Increments'!F45 -> 20.78493119 | M8: ='Calc | CESS Revenue Increments'!G45 -> 20.76148228 | N8: ='Calc | CESS Revenue Increments'!H45 -> 20.73804463 | O8: =SUM(J8:N8) -> 104.0008281
B11: End

Sheet Lookup | Tables
B1: ='Input | General'!$B$1 -> AusGrid 2019-24 Draft decision - Capital expenditure sharing scheme model | I1: Key: | J1: Input | K1: Internal Link
B2: =[1]Index!$C$14 -> Lookup | Tables
B4: Unit Denominations
C6: Denominations | E6: Ref
C7: Dollars | E7: $dollars
C8: Thousands | E8: $000
C9: Millions | E9: $millions
C11: Actual | E11: Actual
C12: Estimate | E12: Estimate
C13: not applicable | E13: n/a
B16: Years
C18: =B16 -> Years | E18: Ref
C19: not applicable | E19: n/a
C20: nominal | E20: nominal
C21: 2007-08 | E21: 2007-08
C22: 2008-09 | E22: 2008-09
C23: 2009-10 | E23: 2009-10
C24: 2010-11 | E24: 2010-11
C25: 2011-12 | E25: 2011-12
C26: 2012-13 | E26: 2012-13
C27: 2013-14 | E27: 2013-14
C28: 2014-15 | E28: 2014-15
C29: 2015-16 | E29: 2015-16
C30: 2016-17 | E30: 2016-17
C31: 2017-18 | E31: 2017-18
C32: 2018-19 | E32: 2018-19
C33: 2019-20 | E33: 2019-20
C34: 2020-21 | E34: 2020-21
C35: 2021-22 | E35: 2021-22
C36: 2022-23 | E36: 2022-23
C37: 2023-24 | E37: 2023-24
B39: End
